[Event "XLV Sevilla Open 2020"]
[Site "Sevilla"]
[Date "2020.01.18"]
[Round "9.5"]
[White "Pingin, Artem"]
[Black "Matamoros Franco, Carlos S."]
[Result "0-1"]
[ECO "B32"]
[WhiteElo "2143"]
[BlackElo "2487"]
[Annotator "ChessBase"]
[PlyCount "98"]
[EventDate "2020.01.05"]
[EventType "swiss"]
[EventCountry "ESP"]
[SourceTitle "playchess.com"]
[Source "ChessBase"]
[SourceQuality "1"]
[TimeControl "5400+30"]

1. e4 {[%emt 0:00:00]} c5 {[%emt 0:04:58]} 2. Nf3 {[%emt 0:00:00]} Nc6 {[%emt 0:00:13]} 3. d4 {[%emt 0:00:00]} cxd4 4. Nxd4 {[%emt 0:00:00]} e5 {[%emt 0:00:20]} 5. Nb5 {[%emt 0:00:00]} d6 {[%emt 0:00:05]} 6. c4 {[%emt 0:00:00]} Be7 {[%emt 0:00:24]} 7. N5c3 {[%emt 0:00:00]} Nf6 {[%emt 0:01:22]} 8. Bd3 {[%emt 0:00:00]} Nd7 {[%emt 0:00:24]} 9. Nd5 {[%emt 0:00:14]} Nc5 {[%emt 0:00:07]} 10. Nbc3 {[%emt 0:00:13]} O-O {[%emt 0:01:08]} 11. Nxe7+ {[%emt 0:01:10]} Qxe7 {[%emt 0:01:23]} 12. O-O {[%emt 0:00:25]} f5 {[%emt 0:02:37]} 13. exf5 {[%emt 0:03:38]} Nxd3 {[%emt 0:00:42]} 14. Qxd3 {[%emt 0:09:08]} Bxf5 {[%emt 0:01:03]} 15. Qg3 {[%emt 0:00:05]} Qe6 {[%emt 0:22:26]} 16. Nd5 {[%emt 0:02:32]} Nd4 {[%emt 0:11:03]} 17. Kh1 {[%emt 0:02:22]} Be4 {[%emt 0:01:52]} 18. Be3 {[%emt 0:09:35]} Nf5 {[%emt 0:02:07]} 19. Qg4 {[%emt 0:04:34]} Bxd5 {[%emt 0:00:12]} 20. cxd5 {[%emt 0:00:10]} Qxd5 {[%emt 0:00:04]} 21. Rfd1 {[%emt 0:00:12]} Qb5 {[%emt 0:06:45]} 22. Qe4 {[%emt 0:01:31]} Rf6 {[%emt 0:09:53]} 23. Bg5 {[%emt 0:05:04]} Rf7 {[%emt 0:00:01]} 24. Rd2 {[%emt 0:00:37]} h6 {[%emt 0:04:54]} 25. Be3 {[%emt 0:01:30]} Qc6 {[%emt 0:00:28]} 26. Qxc6 {[%emt 0:10:37]} bxc6 {[%emt 0:00:01]} 27. g4 {[%emt 0:00:05]} Nxe3 {[%emt 0:00:19]} 28. fxe3 {[%emt 0:00:02]} d5 {[%emt 0:01:17]} 29. Rc1 {[%emt 0:00:07]} Rf6 {[%emt 0:01:36]} 30. Rdc2 {[%emt 0:08:36]} Rb8 {[%emt 0:05:54]} 31. Rxc6 {[%emt 0:03:44]} Rxb2 {[%emt 0:00:45]} 32. Rxf6 {[%emt 0:02:08]} gxf6 {[%emt 0:00:01]} 33. Rc5 {[%emt 0:00:42]} Rxa2 {[%emt 0:00:54]} 34. Rxd5 {[%emt 0:00:03]} Kf7 {[%emt 0:00:07]} 35. Kg1 {[%emt 0:02:38]} Kg6 {[%emt 0:02:06]} 36. Rd7 {[%emt 0:01:09]} a5 {[%emt 0:00:13]} 37. Ra7 {[%emt 0:00:55]} h5 {[%emt 0:01:52]} 38. h3 {[%emt 0:00:46]} hxg4 {[%emt 0:00:04]} 39. hxg4 {[%emt 0:00:00]} a4 {[%emt 0:00:10]} 40. Ra8 {[%emt 0:00:11]} a3 {[%emt 0:00:18]} 41. Rg8+ {[%emt 0:00:36]} Kh6 {[%emt 0:00:12]} 42. g5+ {[%emt 0:00:50]} fxg5 {[%emt 0:00:37]} 43. Ra8 {[%emt 0:00:27]} Kh5 {[%emt 0:00:08]} 44. Ra4 {[%emt 0:00:05]} g4 {[%emt 0:00:04]} 45. Ra5 {[%emt 0:01:07]} Kh4 {[%emt 0:00:05]} 46. Rxe5 {[%emt 0:00:56]} Rb2 {[%emt 0:00:05]} 47. Ra5 {[%emt 0:00:26]} a2 {[%emt 0:00:04]} 48. e4 {[%emt 0:00:09]} Rb1+ {[%emt 0:00:09]} 49. Kg2 {[%emt 0:00:02]} a1=Q {[%emt 0:00:07]} 0-1

[Event "XLV Sevilla Open 2020"]
[Site "Sevilla"]
[Date "2020.01.18"]
[Round "9.6"]
[White "Pridorozhni, Aleksei"]
[Black "Gutierrez Olivares, Daniel"]
[Result "1-0"]
[ECO "E77"]
[WhiteElo "2601"]
[BlackElo "2358"]
[Annotator "ChessBase"]
[PlyCount "51"]
[EventDate "2020.01.05"]
[EventType "swiss"]
[EventCountry "ESP"]
[SourceTitle "playchess.com"]
[Source "ChessBase"]
[SourceQuality "1"]
[TimeControl "5400+30"]

1. e4 g6 2. d4 Bg7 3. c4 d6 4. Nc3 Nf6 5. f4 O-O 6. Nf3 c5 7. d5 e6 8. dxe6 Bxe6 9. Bd3 Re8 10. O-O Bg4 11. h3 Bxf3 12. Qxf3 Nc6 13. Kh1 Qb6 14. Qf2 Nb4 15. Bb1 h6 16. Be3 Qc6 17. a3 Na6 18. Bc2 Re7 19. Rae1 Qb6 20. Bc1 Nc7 21. e5 Nd7 22. f5 dxe5 23. fxg6 fxg6 24. Qh4 g5 25. Bxg5 Re6 26. Nd5 1-0

[Event "XLV Sevilla Open 2020"]
[Site "Sevilla"]
[Date "2020.01.18"]
[Round "9.8"]
[White "Piasetski, Leon"]
[Black "Swayams, Mishra"]
[Result "0-1"]
[ECO "A10"]
[WhiteElo "2219"]
[BlackElo "2479"]
[Annotator "ChessBase"]
[PlyCount "80"]
[EventDate "2020.01.05"]
[EventType "swiss"]
[EventCountry "ESP"]
[SourceTitle "playchess.com"]
[Source "ChessBase"]
[SourceQuality "1"]
[TimeControl "5400+30"]

1. c4 {[%emt 0:00:00]} b6 {[%emt 0:11:02]} 2. Nc3 {[%emt 0:01:07]} Bb7 {[%emt 0:00:16]} 3. e4 {[%emt 0:00:11]} e5 {[%emt 0:00:27]} 4. Nf3 {[%emt 0:00:22]} Nc6 {[%emt 0:00:13]} 5. Be2 {[%emt 0:03:49]} Bc5 {[%emt 0:00:41]} 6. Nxe5 {[%emt 0:06:20]} Nxe5 {[%emt 0:00:14]} 7. d4 {[%emt 0:00:07]} Bd6 {[%emt 0:02:36]} 8. dxe5 {[%emt 0:00:26]} Bxe5 {[%emt 0:00:02]} 9. Nd5 {[%emt 0:04:35]} c6 {[%emt 0:01:56]} 10. Ne3 {[%emt 0:04:18]} Nf6 {[%emt 0:03:12]} 11. Qc2 {[%emt 0:14:39]} Qc7 {[%emt 0:01:44]} 12. g3 O-O-O 13. f4 {[%emt 0:08:44]} Bd4 {[%emt 0:06:43]} 14. O-O {[%emt 0:17:22]} c5 {[%emt 0:05:10]} 15. Bf3 {[%emt 0:00:35]} d6 {[%emt 0:02:18]} 16. Kg2 {[%emt 0:01:21]} Bxe3 {[%emt 0:02:53]} 17. Bxe3 {[%emt 0:00:08]} Rhe8 {[%emt 0:00:02]} 18. e5 {[%emt 0:07:33]} dxe5 {[%emt 0:00:22]} 19. fxe5 {[%emt 0:00:38]} Qxe5 {[%emt 0:00:22]} 20. Bxb7+ {[%emt 0:00:19]} Kxb7 {[%emt 0:09:05]} 21. Rae1 {[%emt 0:03:22]} Rd7 {[%emt 0:04:23]} 22. b3 {[%emt 0:03:43]} Qe6 23. Qf2 {[%emt 0:00:08]} Qc6+ {[%emt 0:02:39]} 24. Qf3 {[%emt 0:02:10]} Qxf3+ 25. Rxf3 Rde7 {[%emt 0:04:51]} 26. h3 {[%emt 0:01:17]} Nd7 {[%emt 0:00:38]} 27. Rd1 Ne5 {[%emt 0:02:09]} 28. Rf2 {[%emt 0:01:27]} f6 {[%emt 0:00:18]} 29. Rfd2 {[%emt 0:01:38]} Nc6 {[%emt 0:02:55]} 30. Bf2 {[%emt 0:00:51]} Kc8 31. g4 {[%emt 0:04:21]} Rd8 {[%emt 0:01:52]} 32. Rxd8+ {[%emt 0:00:09]} Nxd8 {[%emt 0:00:02]} 33. Rd2 {[%emt 0:03:22]} Nc6 {[%emt 0:00:28]} 34. Rd6 {[%emt 0:03:45]} Re2 {[%emt 0:01:39]} 35. a3 {[%emt 0:01:36]} Rb2 {[%emt 0:06:18]} 36. Rd3 {[%emt 0:00:31]} Na5 {[%emt 0:01:11]} 37. Re3 {[%emt 0:00:40]} Kd7 {[%emt 0:00:05]} 38. Rd3+ {[%emt 0:00:04]} Ke7 {[%emt 0:00:10]} 39. b4 {[%emt 0:00:41]} cxb4 {[%emt 0:00:31]} 40. axb4 {[%emt 0:00:08]} Nxc4 {[%emt 0:00:10]} 0-1

[Event "XLV Sevilla Open 2020"]
[Site "Sevilla"]
[Date "2020.01.18"]
[Round "9.9"]
[White "Alsina Leal, Daniel"]
[Black "Pogorelov, Ruslan"]
[Result "1-0"]
[ECO "B10"]
[WhiteElo "2465"]
[BlackElo "2377"]
[Annotator "ChessBase"]
[PlyCount "81"]
[EventDate "2020.01.05"]
[EventType "swiss"]
[EventCountry "ESP"]
[SourceTitle "playchess.com"]
[Source "ChessBase"]
[SourceQuality "1"]
[TimeControl "5400+30"]

1. e4 {[%emt 0:01:57]} c6 {[%emt 0:00:00]} 2. Nf3 {[%emt 0:00:22]} d5 {[%emt 0:00:00]} 3. d3 {[%emt 0:00:14]} dxe4 {[%emt 0:00:19]} 4. dxe4 {[%emt 0:00:05]} Qxd1+ {[%emt 0:00:23]} 5. Kxd1 {[%emt 0:00:04]} Bg4 {[%emt 0:00:56]} 6. Be2 {[%emt 0:00:11]} Nd7 {[%emt 0:04:00]} 7. Ne1 {[%emt 0:00:55]} Bxe2+ {[%emt 0:04:52]} 8. Kxe2 {[%emt 0:00:05]} Ngf6 {[%emt 0:00:19]} 9. f3 {[%emt 0:00:41]} e5 {[%emt 0:01:09]} 10. Nd3 {[%emt 0:02:09]} Bd6 {[%emt 0:00:39]} 11. Be3 {[%emt 0:02:43]} Ke7 {[%emt 0:01:12]} 12. Nd2 {[%emt 0:02:16]} b5 {[%emt 0:00:51]} 13. a4 {[%emt 0:03:28]} a6 {[%emt 0:00:22]} 14. c4 {[%emt 0:01:15]} Rhc8 {[%emt 0:01:47]} 15. Rhc1 {[%emt 0:23:56]} Ke6 {[%emt 0:07:30]} 16. Nb3 {[%emt 0:06:42]} Ng8 {[%emt 0:18:05]} 17. Na5 {[%emt 0:22:30]} Ne7 {[%emt 0:00:50]} 18. Nb7 {[%emt 0:01:31]} Rab8 {[%emt 0:03:28]} 19. Nxd6 {[%emt 0:00:16]} Kxd6 {[%emt 0:00:28]} 20. axb5 {[%emt 0:06:10]} axb5 {[%emt 0:00:08]} 21. Rd1 {[%emt 0:00:30]} Ke6 {[%emt 0:06:30]} 22. Nc5+ {[%emt 0:00:26]} Nxc5 {[%emt 0:00:49]} 23. Bxc5 {[%emt 0:00:03]} Rd8 {[%emt 0:00:50]} 24. Rxd8 {[%emt 0:05:05]} Rxd8 {[%emt 0:00:51]} 25. cxb5 {[%emt 0:00:33]} Ng6 {[%emt 0:01:06]} 26. b6 {[%emt 0:04:04]} Nf4+ {[%emt 0:00:24]} 27. Kf1 {[%emt 0:00:12]} f5 {[%emt 0:04:47]} 28. g3 {[%emt 0:01:30]} Nd3 {[%emt 0:00:42]} 29. b4 {[%emt 0:02:18]} g5 {[%emt 0:00:22]} 30. Rd1 {[%emt 0:03:57]} g4 {[%emt 0:00:24]} 31. b7 {[%emt 0:02:43]} fxe4 {[%emt 0:01:25]} 32. fxe4 {[%emt 0:00:09]} Nxc5 {[%emt 0:00:17]} 33. Rxd8 {[%emt 0:00:06]} Nxb7 {[%emt 0:00:14]} 34. Re8+ {[%emt 0:00:50]} Kd6 {[%emt 0:02:05]} 35. Rh8 {[%emt 0:00:41]} c5 {[%emt 0:01:26]} 36. Rxh7 {[%emt 0:00:24]} Kc6 {[%emt 0:00:23]} 37. bxc5 {[%emt 0:02:17]} Nxc5 {[%emt 0:00:02]} 38. Rg7 {[%emt 0:00:27]} Nxe4 {[%emt 0:00:45]} 39. Rxg4 {[%emt 0:00:07]} Kd5 {[%emt 0:00:10]} 40. Rxe4 {[%emt 0:00:33]} Kxe4 {[%emt 0:00:10]} 41. Ke2 {[%emt 0:00:05]} 1-0

[Event "XLV Sevilla Open 2020"]
[Site "Sevilla"]
[Date "2020.01.18"]
[Round "9.11"]
[White "Uribe, Jhonny Alberto"]
[Black "Pap, Misa"]
[Result "0-1"]
[ECO "A46"]
[WhiteElo "2149"]
[BlackElo "2427"]
[Annotator "ChessBase"]
[PlyCount "52"]
[EventDate "2020.01.05"]
[EventType "swiss"]
[EventCountry "ESP"]
[SourceTitle "playchess.com"]
[Source "ChessBase"]
[SourceQuality "1"]
[TimeControl "5400+30"]

1. d4 {[%emt 0:00:07]} Nf6 {[%emt 0:02:25]} 2. Nf3 {[%emt 0:00:15]} e6 {[%emt 0:00:10]} 3. Bf4 {[%emt 0:00:18]} c5 {[%emt 0:06:01]} 4. e3 {[%emt 0:01:26]} Qb6 {[%emt 0:01:45]} 5. b3 {[%emt 0:10:40]} Nd5 {[%emt 0:06:40]} 6. Bxb8 {[%emt 0:06:26]} Rxb8 {[%emt 0:03:08]} 7. c3 {[%emt 0:04:57]} cxd4 {[%emt 0:06:32]} 8. Nxd4 {[%emt 0:07:15]} Be7 {[%emt 0:10:09]} 9. Bd3 {[%emt 0:03:43]} Qc7 {[%emt 0:01:23]} 10. Nb5 {[%emt 0:08:14]} Qe5 {[%emt 0:04:40]} 11. Nxa7 {[%emt 0:11:28]} Nxe3 {[%emt 0:01:06]} 12. fxe3 {[%emt 0:04:16]} Qxe3+ {[%emt 0:00:08]} 13. Qe2 {[%emt 0:00:02]} Qxa7 {[%emt 0:00:11]} 14. Nd2 {[%emt 0:00:41]} O-O {[%emt 0:03:12]} 15. h4 {[%emt 0:00:39]} Qc5 {[%emt 0:02:15]} 16. Rh3 {[%emt 0:01:53]} f5 {[%emt 0:01:12]} 17. Rc1 {[%emt 0:02:14]} Bf6 {[%emt 0:04:51]} 18. Kd1 {[%emt 0:00:22]} d6 {[%emt 0:04:25]} 19. Nf3 {[%emt 0:01:14]} Bd7 {[%emt 0:01:00]} 20. b4 {[%emt 0:03:04]} Qb6 {[%emt 0:02:30]} 21. Kd2 {[%emt 0:03:54]} h6 {[%emt 0:03:04]} 22. Rg3 {[%emt 0:02:27]} Rbc8 {[%emt 0:00:54]} 23. a3 {[%emt 0:00:33]} Qc7 {[%emt 0:03:29]} 24. Rg6 {[%emt 0:06:13]} d5 {[%emt 0:05:21]} 25. Qe3 {[%emt 0:06:26]} f4 {[%emt 0:02:41]} 26. Qf2 {[%emt 0:02:11]} e5 {[%emt 0:00:35]} 0-1

[Event "XLV Sevilla Open 2020"]
[Site "Sevilla"]
[Date "2020.01.18"]
[Round "9.13"]
[White "Padmini, Rout"]
[Black "Pratyusha, Bodda"]
[Result "1-0"]
[ECO "B92"]
[WhiteElo "2369"]
[BlackElo "2267"]
[Annotator "ChessBase"]
[PlyCount "53"]
[EventDate "2020.01.05"]
[EventType "swiss"]
[EventCountry "ESP"]
[SourceTitle "playchess.com"]
[Source "ChessBase"]
[SourceQuality "1"]
[TimeControl "5400+30"]

1. e4 {[%emt 0:03:35]} c5 {[%emt 0:00:05]} 2. Nf3 {[%emt 0:00:11]} d6 {[%emt 0:00:04]} 3. d4 {[%emt 0:00:30]} cxd4 {[%emt 0:00:04]} 4. Nxd4 {[%emt 0:00:07]} Nf6 {[%emt 0:00:11]} 5. Nc3 {[%emt 0:00:04]} a6 {[%emt 0:00:08]} 6. Be2 {[%emt 0:00:06]} e5 {[%emt 0:00:23]} 7. Nb3 {[%emt 0:00:05]} Be6 {[%emt 0:01:55]} 8. O-O {[%emt 0:00:32]} Be7 {[%emt 0:00:14]} 9. Qd3 {[%emt 0:00:32]} O-O {[%emt 0:01:29]} 10. Nd5 {[%emt 0:00:44]} Nbd7 {[%emt 0:05:29]} 11. Bd2 {[%emt 0:01:42]} Nc5 {[%emt 0:04:44]} 12. Nxc5 {[%emt 0:01:29]} dxc5 {[%emt 0:00:05]} 13. c4 {[%emt 0:00:32]} Nxd5 {[%emt 0:05:08]} 14. cxd5 {[%emt 0:07:48]} Bd7 {[%emt 0:01:19]} 15. a4 {[%emt 0:06:44]} Bd6 {[%emt 0:01:18]} 16. a5 {[%emt 0:04:50]} f5 {[%emt 0:02:25]} 17. f3 {[%emt 0:09:10]} f4 {[%emt 0:09:07]} 18. Be1 {[%emt 0:04:20]} Qg5 {[%emt 0:05:37]} 19. Qd2 {[%emt 0:12:19]} c4 {[%emt 0:08:30]} 20. Bxc4 {[%emt 0:03:18]} Rac8 {[%emt 0:00:30]} 21. b3 {[%emt 0:00:27]} Rf6 {[%emt 0:01:07]} 22. g4 {[%emt 0:07:39]} Rg6 {[%emt 0:07:25]} 23. Kh1 {[%emt 0:04:07]} Bxg4 {[%emt 0:13:18]} 24. fxg4 {[%emt 0:00:13]} Qxg4 {[%emt 0:00:05]} 25. Qe2 {[%emt 0:04:25]} Qg5 {[%emt 0:04:01]} 26. Qf3 {[%emt 0:00:46]} Bc5 {[%emt 0:02:22]} 27. Bf2 {[%emt 0:00:18]} 1-0

[Event "XLV Sevilla Open 2020"]
[Site "Sevilla"]
[Date "2020.01.18"]
[Round "9.14"]
[White "Morales Araujo, Francisco Javier"]
[Black "Bernadskiy, Vitaliy"]
[Result "0-1"]
[ECO "A02"]
[WhiteElo "2103"]
[BlackElo "2588"]
[Annotator "ChessBase"]
[PlyCount "100"]
[EventDate "2020.01.05"]
[EventType "swiss"]
[EventCountry "ESP"]
[SourceTitle "playchess.com"]
[Source "ChessBase"]
[SourceQuality "1"]
[TimeControl "5400+30"]

1. f4 b6 2. Nf3 Bb7 3. e3 g6 4. d4 Bg7 5. Bd3 Nf6 6. O-O O-O 7. Qe2 c5 8. c3 Ne4 9. Nbd2 d5 10. Ng5 Nxg5 11. fxg5 e5 12. dxe5 Qxg5 13. Nf3 Qe7 14. e4 c4 15. Bc2 Nd7 16. Bg5 Qe6 17. Rae1 Nxe5 18. Nxe5 Qxe5 19. Bf4 Qe6 20. e5 Rae8 21. Qd2 f6 22. exf6 Qxf6 23. Be5 Qe7 24. Bd4 Bxd4+ 25. cxd4 Rxf1+ 26. Rxf1 Ba6 27. Rf3 Qe1+ 28. Qxe1 Rxe1+ 29. Kf2 Rc1 30. Rc3 Kg7 31. Ba4 Rb1 32. Bc6 Rxb2+ 33. Kg3 Bc8 34. Bxd5 b5 35. Re3 Kf6 36. Re8 Bd7 37. Rh8 Ke7 38. Rxh7+ Kd6 39. Be4 c3 40. Rh6 c2 41. Rxg6+ Be6 42. Bxc2 Rxc2 43. h4 Rc8 44. h5 a5 45. h6 Rg8 46. Rxg8 Bxg8 47. Kf4 b4 48. Ke3 a4 49. Kd2 Bh7 50. a3 bxa3 0-1

[Event "XLV Sevilla Open 2020"]
[Site "Sevilla"]
[Date "2020.01.18"]
[Round "9.16"]
[White "Ordonez Torres, Maria Del Carmen"]
[Black "Polivanov, Anatoliy"]
[Result "0-1"]
[ECO "C02"]
[WhiteElo "2061"]
[BlackElo "2420"]
[Annotator "ChessBase"]
[PlyCount "56"]
[EventDate "2020.01.05"]
[EventType "swiss"]
[EventCountry "ESP"]
[SourceTitle "playchess.com"]
[Source "ChessBase"]
[SourceQuality "1"]
[TimeControl "5400+30"]

1. e4 e6 2. d4 d5 3. e5 c5 4. c3 Nc6 5. Nf3 Bd7 6. Be2 Nge7 7. O-O Ng6 8. g3 Be7 9. h4 cxd4 10. cxd4 O-O 11. Nc3 f6 12. Bd3 fxe5 13. Bxg6 Rxf3 14. Bxh7+ Kxh7 15. Qxf3 Nxd4 16. Qh5+ Kg8 17. f4 e4 18. f5 Nxf5 19. Nxd5 exd5 20. Rxf5 Bxf5 21. Qxf5 Qb6+ 22. Kg2 Rd8 23. Kh3 Qf6 24. Qh5 e3 25. Qg4 d4 26. b3 d3 27. Rb1 Qf1+ 28. Kh2 Qe2+ 0-1

[Event "XLV Sevilla Open 2020"]
[Site "Sevilla"]
[Date "2020.01.18"]
[Round "9.17"]
[White "Carrasco Martinez, Juan M."]
[Black "Silva Lucena, Cristian"]
[Result "0-1"]
[ECO "C45"]
[WhiteElo "2391"]
[BlackElo "2217"]
[Annotator "ChessBase"]
[PlyCount "62"]
[EventDate "2020.01.05"]
[EventType "swiss"]
[EventCountry "ESP"]
[SourceTitle "playchess.com"]
[Source "ChessBase"]
[SourceQuality "1"]
[TimeControl "5400+30"]

1. e4 e5 2. Nf3 Nc6 3. d4 exd4 4. Nxd4 Nf6 5. Nxc6 bxc6 6. Nd2 Bc5 7. Bd3 O-O 8. O-O Re8 9. Nb3 Bb6 10. Qf3 d6 11. h3 Nd7 12. Kh1 Qh4 13. Bf4 Ne5 14. Qg3 Qxg3 15. Bxg3 Nxd3 16. cxd3 a5 17. Rfc1 a4 18. Nd2 Ba6 19. Rxc6 Bxd3 20. f3 Rab8 21. Nc4 Bc5 22. b3 axb3 23. axb3 Rxb3 24. Na5 Rb5 25. Be1 Bb6 26. Rcc1 f5 27. exf5 Rxe1+ 28. Rxe1 Bxa5 29. Re8+ Kf7 30. Ra8 Bb6 31. g4 Rb1+ 0-1